bitfinex-derivatives/quotes_SOLF0:USTF0_20240908
["timestamp","ask_amount","ask_price","bid_price","bid_amount"]
[1725775515675,8.4,128.23,128.18,8.4]
[1725775515876,8.4,128.23,128.19,3.88650257]
[1725775516873,11.1299,128.23,128.19,3.88650257]
[1725775519480,4.0294,128.24,128.2,8.4]
[1725775519785,4.0294,128.24,128.2,12.28468272]
[1725775520774,395.28229002,128.25,128.2,12.28468272]
[1725775521384,395.28229002,128.25,128.21,2.7301]
[1725775522393,398.01169002,128.25,128.21,2.7301]
[1725775531994,395.28229002,128.25,128.22,2.73]
[1725775535492,395.28229002,128.25,128.21,2.7301]
[1725775535493,406.41179002,128.25,128.21,2.7301]
[1725775537296,406.41179002,128.25,128.2,6.61508272]
[1725775537491,8.4,128.24,128.2,2.7304]
[1725775537998,8.4,128.24,128.21,3.92238907]
[1725775540599,8.4,128.24,128.15,125.28532004]
[1725775540794,8.4,128.24,128.19,8.4]
[1725775541104,8.4,128.24,128.19,12.39017977]
[1725775542299,8.4,128.24,128.2,2.7303]
[1725775544202,8.4,128.24,128.21,2.7302]
[1725775544903,406.41179002,128.25,128.21,2.7302]
[1725775546608,406.41179002,128.25,128.2,2.7304]
[1725775549104,2.7296,128.24,128.2,2.7304]
[1725775551211,406.41179002,128.25,128.2,11.1304]
[1725775553317,406.41179002,128.25,128.2,2.7304]
[1725775553712,31.81,128.24,128.19,3.99017977]
[1725775553911,8.4,128.22,128.15,117.48332004]
[1725775554110,8.4,128.22,128.16,8.4]
[1725775554313,11.1302,128.22,128.17,2.7309]
[1725775559015,2.7302,128.22,128.18,8.4]
[1725775559320,2.7302,128.22,128.18,12.25932324]
[1725775560431,2.7299,128.23,128.18,12.25932324]
[1725775561112,2.7299,128.23,128.19,8.4]
[1725775561716,2.7299,128.23,128.18,11.1308]
[1725775562516,2.7299,128.23,128.18,15.02055462]
[1725775562712,2.7299,128.23,128.19,11.1307]
[1725775566231,31.81,128.24,128.18,15.02055462]
[1725775566232,2.7301,128.22,128.18,15.02055462]
[1725775567329,11.1301,128.22,128.18,15.02055462]
[1725775568527,2.73,128.23,128.18,15.02055462]
[1725775568730,2.73,128.23,128.19,2.7307]
[1725775583552,2.73,128.23,128.18,15.02055462]
[1725775587054,2.73,128.22,128.18,15.02055462]
[1725775598661,395.28229002,128.25,128.19,8.4]
[1725775598864,403.68229002,128.25,128.19,8.4]
[1725775600367,2.7297,128.24,128.19,11.1306]
[1725775601966,2.7297,128.24,128.2,2.7304]
[1725775602167,2.7297,128.24,128.2,11.1304]
[1725775602466,392.65249002,128.25,128.22,8.4]
[1725775602962,392.65249002,128.25,128.22,12.21249676]
[1725775610061,392.65249002,128.25,128.23,8.4]
[1725775618371,392.65249002,128.25,128.23,11.1297]
[1725775618573,392.65249002,128.25,128.24,8.4]
[1725775619473,392.65249002,128.25,128.24,11.1296]
[1725775619675,317.43249002,128.25,128.24,11.1296]
[1725775620277,315.43249002,128.25,128.24,11.1296]
[1725775620670,315.43249002,128.25,128.24,14.98715086]
[1725775628284,315.43249002,128.25,128.24,3.85755086]
[1725775629184,315.43249002,128.25,128.23,12.4462]
[1725775629589,315.43249002,128.25,128.23,16.26160138]
[1725775629886,315.43249002,128.25,128.24,11.1296]
[1725775635380,312.43249002,128.25,128.24,11.1296]
[1725775635988,312.43249002,128.25,128.24,14.98234836]
[1725775636984,237.21249002,128.25,128.24,14.98234836]
[1725775637188,234.21249002,128.25,128.24,11.1296]
[1725775637385,234.21249002,128.25,128.24,15.01012327]
[1725775651208,155.99249002,128.25,128.24,11.1296]
[1725775651803,155.99249002,128.25,128.24,15.12126482]
[1725775655505,5.3592,128.3,128.24,15.12126482]
[1725775657521,5.3592,128.3,128.25,2.7294]
[1725775657707,5.3592,128.3,128.27,8.4]
[1725775673825,5.3592,128.3,128.26,2.7292]
[1725775674123,2.7286,128.29,128.26,2.7292]
[1725775676023,5.3592,128.3,128.26,2.7292]
[1725775677623,2.7286,128.29,128.25,2.7293]
[1725775677821,2.7286,128.29,128.25,11.1293]
[1725775679823,5.3592,128.3,128.25,11.1293]
[1725775691540,5.3592,128.3,128.26,11.1292]
[1725775691744,2.7284,128.3,128.26,11.1292]
[1725775696044,8.4,128.29,128.23,162.61025879]
[1725775696333,8.4,128.28,128.23,162.61025879]
[1725775696533,8.4,128.28,128.23,166.55404052]
[1725775697536,2.7291,128.27,128.23,169.28384052]
[1725775698743,2.7289,128.28,128.23,177.68384052]
[1725775699331,2.7289,128.28,128.24,11.1295]
[1725775702739,2.7991,128.31,128.23,166.55404052]
[1725775702740,3.83684937,128.32,128.27,8.4]
[1725775702943,38.02484731,128.36,128.28,8.4]
[1725775703243,2.7276,128.34,128.3,8.4]
[1725775703440,224.09999999,128.44,128.33,8.4]
[1725775703633,12.10572585,128.43,128.35,8.4]
[1725775703838,12.10572585,128.43,128.36,12.2999376]
[1725775703839,8.4,128.41,128.36,12.2999376]
[1725775704040,8.4,128.41,128.36,8.4]
[1725775704663,8.4,128.41,128.36,12.37091647]
[1725775705340,11.1262,128.41,128.36,15.09781647]
[1725775708241,28.64928688,128.43,128.35,11.1273]
[1725775708242,11.1262,128.4,128.35,11.1273]
[1725775708845,2.7265,128.39,128.35,11.1273]
[1725775709044,2.7265,128.39,128.35,2.7273]
[1725775710052,2.7265,128.39,128.34,11.1274]
[1725775710749,8.4,128.39,128.33,11.1276]
[1725775711051,8.4,128.38,128.33,11.1276]
[1725775711554,11.1268,128.38,128.33,11.1276]
[1725775713949,2.7265,128.39,128.34,8.4]
[1725775715544,2.7265,128.39,128.34,11.1275]
[1725775723848,2.7268,128.38,128.34,2.7275]
[1725775729758,2.7265,128.39,128.34,2.7275]
[1725775730052,122.41873421,128.42,128.34,8.4]
[1725775730261,122.41873421,128.42,128.31,6.45040355]
[1725775730262,8.4,128.41,128.35,9.7612]
[1725775731455,2.7263,128.4,128.36,2.727]
[1725775733156,11.126,128.41,128.37,2.7268]
[1725775733353,11.126,128.41,128.38,3.97570342]
[1725775736258,2.726,128.41,128.38,3.97570342]
[1725775740554,2.7263,128.4,128.37,8.4]
[1725775742254,2.7263,128.4,128.38,3.89668069]
[1725775746158,122.41873421,128.42,128.38,6.62328069]
[1725775746462,122.41873421,128.42,128.38,3.89668069]
[1725775746854,2.7262,128.41,128.38,3.89668069]
[1725775748163,2.7262,128.4,128.38,3.89668069]
[1725775748962,2.7262,128.4,128.36,2.727]
[1725775749159,2.7262,128.4,128.36,11.127]
[1725775750559,2.7262,128.4,128.37,8.4]
[1725775750760,2.7262,128.4,128.38,3.84087341]
[1725775751968,2.7262,128.4,128.37,8.4]
[1725775757267,2.7262,128.4,128.36,2.727]
[1725775757473,2.7262,128.4,128.36,11.127]
[1725775758475,2.7266,128.39,128.36,8.4]
[1725775759571,2.7263,128.4,128.36,8.4]
[1725775764577,2.7264,128.39,128.35,4.0885]
[1725775764884,122.41873421,128.42,128.35,1.3612]
[1725775764885,8.4,128.4,128.35,1.3612]
[1725775765585,2.7266,128.39,128.35,4.0885]
[1725775766685,2.7262,128.41,128.37,2.7268]
[1725775766875,8.4,128.41,128.35,9.7612]
[1725775767774,2.7266,128.39,128.35,9.7612]
[1725775767974,2.7266,128.39,128.35,1.3612]
[1725775768184,2.7266,128.39,128.35,9.7612]
[1725775771587,2.7267,128.38,128.35,9.7612]
[1725775773494,2.7267,128.38,128.35,8.4]
[1725775775391,145.82873421,128.42,128.35,8.4]
[1725775775392,2.7265,128.39,128.35,8.4]
[1725775782105,2.7262,128.4,128.36,8.4]
[1725775782295,1.2928,128.44,128.39,8.4]
[1725775782502,5.2748095,128.44,128.39,12.23044378]
[1725775782806,2.7259,128.42,128.39,12.23044378]
[1725775786099,2.7259,128.42,128.39,3.83044378]
[1725775786305,2.726,128.41,128.38,8.4]
[1725775786507,2.726,128.41,128.39,3.87680964]
[1725775788306,2.7261,128.41,128.36,2.7271]
[1725775788513,2.7261,128.41,128.37,8.4]
[1725775790010,2.7262,128.4,128.37,8.4]
[1725775791506,2.7262,128.4,128.36,2.7271]
[1725775791704,2.7262,128.4,128.37,8.4]
[1725775793113,8.4,128.43,128.38,8.4]
[1725775793305,8.4,128.43,128.33,167.70945676]
[1725775793306,8.4,128.43,128.37,8.4]
[1725775793614,2.7262,128.41,128.37,8.4]
[1725775793804,8.4,128.42,128.37,8.4]
[1725775794705,2.7262,128.4,128.37,8.4]
[1725775795404,2.7261,128.41,128.37,11.1268]
[1725775795911,8.4,128.41,128.36,11.1269]
[1725775797408,2.7263,128.4,128.36,11.1269]
[1725775799704,2.7265,128.39,128.35,2.7272]
[1725775799912,8.4,128.41,128.35,11.1272]
[1725775800317,2.7263,128.4,128.35,11.1272]
[1725775805516,2.7265,128.39,128.35,11.1272]
[1725775805718,2.7265,128.39,128.32,1.3198]
[1725775805719,8.4,128.37,128.32,1.3198]
[1725775806016,8.4,128.36,128.32,1.3198]
[1725775806218,8.4,128.36,128.3,2.7282]
[1725775806414,8.4,128.36,128.3,11.1282]
[1725775806725,8.4,128.36,128.3,15.05566143]
[1725775807416,2.7274,128.35,128.31,2.7281]
[1725775807618,8.4,128.37,128.32,8.4]
[1725775809316,1.3006,128.38,128.32,11.1278]
[1725775809317,2.7272,128.36,128.32,11.1278]
[1725775809522,2.7272,128.36,128.32,8.4]
[1725775812925,2.7272,128.36,128.32,11.1279]
[1725775813121,2.5797,128.4,128.32,8.4]
[1725775813311,2.5797,128.4,128.32,9.7941]
[1725775813312,8.4,128.39,128.32,9.7941]
[1725775813516,8.4,128.39,128.32,11.0973]
[1725775813712,2.7268,128.38,128.33,2.7275]
[1725775813911,8.4,128.39,128.33,2.7275]
[1725775815027,2.7269,128.37,128.33,2.7275]
[1725775830528,2.7272,128.36,128.32,5.4252]
[1725775830842,2.7272,128.36,128.32,2.7279]
[1725775836645,15.04670586,128.37,128.33,2.7277]
[1725775842665,2.7269,128.37,128.33,2.7277]
[1725775842954,2.7268,128.38,128.34,2.7275]
[1725775848563,11.1268,128.38,128.34,2.7275]
[1725775850359,2.7269,128.37,128.33,11.1275]
[1725775850662,11.1269,128.37,128.33,2.7275]
[1725775850851,8.4,128.34,128.31,1.3836]
[1725775851053,1.2767,128.4,128.26,2.6036]
[1725775851054,8.4,128.33,128.26,2.6036]
[1725775851259,8.4,128.31,128.26,3.9478]
[1725775851463,8.4,128.29,128.26,3.9478]
[1725775851662,8.4,128.29,128.26,1.3442]
[1725775851964,11.1288,128.28,128.24,159.84584123]
[1725775852155,8.4,128.28,128.24,159.84584123]
[1725775852357,1.313,128.33,128.24,159.84584123]
[1725775852558,8.4,128.28,128.24,159.84584123]
[1725775853255,8.4,128.28,128.23,3.90110758]
[1725775853460,11.1288,128.28,128.23,6.63090758]
[1725775853663,11.1288,128.28,128.23,2.7298]
[1725775854260,11.1288,128.28,128.23,6.62895761]
[1725775857165,1.313,128.33,128.24,8.4]
[1725775857474,8.4,128.31,128.26,8.4]
[1725775858066,8.4,128.31,128.27,3.95796536]
[1725775858460,11.1282,128.31,128.27,3.95796536]
[1725775859763,2.7284,128.3,128.26,8.4]
[1725775859966,2.7284,128.3,128.26,12.23900799]
[1725775860864,2.7284,128.3,128.26,14.96810799]
[1725775861665,1.3755,128.34,128.28,8.4]
[1725775861864,9.7755,128.34,128.28,8.4]
[1725775862268,2.7277,128.33,128.28,8.4]
[1725775862969,2.7277,128.33,128.29,2.7286]
[1725775863366,11.1275,128.34,128.29,2.7286]
[1725775866569,11.1273,128.35,128.3,11.1283]
[1725775867182,2.7275,128.34,128.3,11.1283]
[1725775870880,2.7275,128.34,128.3,2.7283]
[1725775875978,11.1275,128.34,128.29,11.1285]
[1725775880185,2.7278,128.33,128.29,11.1285]
[1725775881485,2.7275,128.34,128.3,2.7283]
[1725775884689,8.4,128.35,128.31,2.7281]
[1725775884690,2.7274,128.35,128.31,2.7281]
[1725775884885,107.2404283,128.36,128.3,8.4]
[1725775885085,1.3156,128.38,128.32,8.4]
[1725775885291,1.344,128.39,128.33,8.4]
[1725775886096,1.344,128.39,128.34,3.87771607]
[1725775886389,2.7267,128.38,128.34,6.60501607]
[1725775890597,11.1267,128.38,128.33,2.7276]
[1725775890986,8.4,128.35,128.3,2.7283]
[1725775891396,8.4,128.36,128.3,8.4]
[1725775891596,11.1271,128.36,128.3,8.4]
[1725775891892,11.1271,128.36,128.31,2.728]
[1725775892897,11.1271,128.36,128.3,2.7282]
[1725775892898,2.7273,128.35,128.3,2.7282]
[1725775893102,8.4,128.34,128.29,8.4]
[1725775894305,8.4,128.34,128.3,2.7282]
[1725775898109,8.4,128.34,128.3,11.1282]
[1725775898405,11.1275,128.34,128.3,8.4]
[1725775898714,8.4,128.34,128.27,4.0009]
[1725775899007,8.4,128.34,128.28,8.4]
[1725775899905,11.1276,128.34,128.29,2.7284]
[1725775910215,11.1276,128.34,128.3,2.7283]
[1725775911413,2.7276,128.34,128.3,2.7283]
[1725775920818,2.7278,128.33,128.27,12.4009]
[1725775921417,2.7278,128.33,128.28,2.7286]
[1725775922914,2.7278,128.33,128.29,2.7285]
[1725775932130,11.1276,128.34,128.29,2.7285]
[1725775932322,5.23952716,128.37,128.31,8.4]
[1725775932626,8.4,128.36,128.31,8.4]
[1725775933423,2.7274,128.35,128.31,11.1281]
[1725775936925,2.7274,128.35,128.31,2.7281]
[1725775940528,11.1274,128.35,128.31,2.7281]
[1725775949343,8.4,128.33,128.3,2.7283]
[1725775952137,2.7275,128.34,128.3,2.7283]
[1725775958846,2.7273,128.35,128.3,2.7283]
[1725775959051,11.1273,128.35,128.31,2.728]
[1725775967741,8.4,128.35,128.31,2.728]
[1725775967951,8.4,128.35,128.32,2.7279]
[1725775969549,11.1271,128.36,128.32,2.7279]
[1725775970853,11.1271,128.36,128.33,3.96454957]
[1725775971951,106.56356872,128.39,128.34,8.4]
[1725775972156,105.21956872,128.39,128.35,3.86359407]
[1725775972345,105.21956872,128.39,128.34,8.4]
[1725775972957,105.21956872,128.39,128.34,12.38910631]
[1725775973154,105.21956872,128.39,128.35,2.7272]
[1725775983453,113.61956872,128.39,128.35,2.7272]
[1725775983651,116.34596872,128.39,128.35,2.7272]
[1725775984460,113.61956872,128.39,128.35,2.7272]
[1725775995572,114.89196872,128.39,128.35,2.7272]
[1725775996878,117.61836872,128.39,128.35,2.7272]
[1725775997079,9.738,128.38,128.35,2.7272]
[1725775997373,9.738,128.38,128.34,6.71650631]
[1725775997973,9.738,128.38,128.34,3.98910631]
[1725775998173,9.738,128.38,128.33,8.4]
[1725775998675,9.738,128.38,128.33,12.31577442]
[1725775999271,9.738,128.38,128.35,2.7273]
[1725776002174,12.4647,128.38,128.34,2.7274]
[1725776007169,8.4,128.36,128.34,2.7274]
[1725776008784,8.4,128.35,128.33,2.7276]
[1725776008984,8.4,128.35,128.31,160.2960061]
[1725776009179,8.4,128.35,128.32,2.7278]
[1725776019297,8.4,128.35,128.31,163.0240061]
[1725776021195,8.4,128.35,128.32,2.7279]
[1725776021394,11.1271,128.36,128.32,2.7279]
[1725776039119,11.1271,128.36,128.31,163.0241061]
[1725776039120,8.4,128.35,128.31,163.0241061]
[1725776039420,11.1273,128.35,128.31,163.0241061]
[1725776042121,2.7276,128.34,128.31,160.2960061]
[1725776042317,8.4,128.35,128.31,160.2960061]
[1725776043322,11.1273,128.35,128.31,163.0241061]
[1725776045527,8.4,128.35,128.31,163.0241061]
[1725776049230,11.1271,128.36,128.31,163.0241061]
[1725776049636,11.1269,128.37,128.32,8.4]
[1725776049839,11.1269,128.37,128.33,3.92509696]
[1725776051538,11.1269,128.37,128.33,6.65279696]
[1725776055434,1.338,128.38,128.33,12.32509696]
[1725776055625,8.4,128.39,128.34,8.4]
[1725776056433,8.4,128.39,128.35,3.90304789]
[1725776056738,8.4,128.39,128.35,2.7271]
[1725776056939,8.4,128.39,128.36,3.83523657]
[1725776057236,2.7262,128.4,128.36,3.83523657]
[1725776060030,2.7262,128.4,128.36,6.56223657]
[1725776060231,11.126,128.41,128.36,6.56223657]
[1725776066343,11.126,128.41,128.37,2.7268]
[1725776067035,11.126,128.41,128.37,6.64521564]
[1725776079353,2.7262,128.4,128.37,2.7268]
[1725776080153,2.7262,128.4,128.37,6.65855081]
[1725776080956,2.6746,128.42,128.36,2.727]
[1725776080957,11.1265,128.39,128.36,2.727]
[1725776081755,11.1265,128.39,128.35,2.7272]
[1725776082553,8.4,128.38,128.35,2.7272]
[1725776083549,8.4,128.38,128.34,3.85810355]
[1725776083550,8.4,128.37,128.34,6.58550355]
[1725776083752,8.4,128.37,128.32,4.1413]
[1725776084351,8.4,128.37,128.33,3.98504741]
[1725776085560,11.1269,128.37,128.33,15.11254741]
[1725776088366,2.7269,128.37,128.33,15.11254741]
[1725776089760,8.4,128.38,128.33,15.11254741]
[1725776089761,2.7267,128.38,128.33,15.11254741]
[1725776089960,2.7267,128.38,128.34,8.4]
[1725776090363,2.7267,128.38,128.34,11.1275]
[1725776091166,8.4,128.4,128.34,8.4]
[1725776091362,8.4,128.39,128.33,12.38504741]
[1725776091563,8.4,128.39,128.33,8.4]
[1725776091762,2.7268,128.38,128.34,2.7274]
[1725776092270,2.7268,128.38,128.34,6.54159168]
[1725776095964,2.7266,128.39,128.35,2.7273]
[1725776096568,2.7266,128.39,128.36,3.93820955]
[1725776102377,2.7266,128.39,128.36,6.66520955]
[1725776102566,11.1263,128.4,128.36,6.66520955]
[1725776107180,8.4,128.4,128.35,2.7272]
[1725776107380,8.4,128.39,128.32,12.5413]
[1725776107580,2.6746,128.42,128.32,12.5413]
[1725776107775,8.4,128.38,128.32,12.5413]
[1725776108173,8.4,128.38,128.34,2.7273]
[1725776108376,8.4,128.38,128.34,6.68031371]
[1725776108675,11.1266,128.39,128.34,11.1273]
[1725776109274,11.1266,128.39,128.35,3.93703643]
[1725776112182,11.1266,128.39,128.35,6.66423643]
[1725776115683,2.7267,128.38,128.34,11.1274]
[1725776116085,2.7267,128.38,128.34,15.03022926]
[1725776116780,11.1265,128.39,128.35,2.7273]
[1725776120787,11.1265,128.39,128.34,6.63032926]
[1725776123586,8.4,128.38,128.33,2.7276]
[1725776124282,8.4,128.38,128.33,6.53408121]
[1725776124482,11.1267,128.38,128.33,6.53408121]
[1725776128199,2.7269,128.37,128.33,6.53408121]
[1725776130793,2.7269,128.37,128.33,2.7276]
[1725776130993,8.4,128.34,128.27,628.19437]
[1725776131195,8.4,128.34,128.29,8.4]
[1725776131700,11.1277,128.34,128.29,11.1284]
[1725776136603,11.1277,128.34,128.29,2.7284]
[1725776136803,11.1277,128.34,128.3,8.4]
[1725776139802,2.7277,128.33,128.3,8.4]
[1725776140004,2.7277,128.33,128.29,11.1284]
[1725776150016,11.1277,128.33,128.29,11.1284]
[1725776151515,1.2843,128.36,128.3,11.1283]
[1725776151715,8.4,128.35,128.3,11.1283]
[1725776152218,11.1275,128.35,128.3,11.1283]
[1725776152721,11.1275,128.34,128.29,2.7285]
[1725776153420,2.7277,128.33,128.29,2.7285]
[1725776157029,11.1276,128.34,128.3,2.7283]
[1725776157733,8.4,128.34,128.29,2.7285]
[1725776158430,11.1275,128.34,128.29,2.7285]
[1725776159030,11.1275,128.34,128.3,2.7283]
[1725776161327,8.4,128.34,128.3,2.7283]
[1725776165530,11.1275,128.34,128.3,2.7283]
[1725776176235,8.4,128.32,128.27,790.62364398]
[1725776176436,8.4,128.31,128.27,790.62364398]
[1725776178341,8.4,128.31,128.28,2.7287]
[1725776180033,8.4,128.31,128.27,793.35254398]
[1725776183044,11.128,128.32,128.27,801.75254398]
[1725776183949,11.128,128.32,128.28,2.7288]
[1725776186856,2.7278,128.33,128.28,2.7288]
[1725776187050,2.7278,128.33,128.29,2.7285]
[1725776187456,11.1278,128.33,128.29,2.7285]
[1725776190361,8.4,128.31,128.28,2.7287]
[1725776192364,11.1281,128.31,128.27,793.35254398]
[1725776193264,8.4,128.3,128.27,789.26484398]
[1725776195463,11.1284,128.3,128.27,789.26484398]
[1725776199673,8.4,128.29,128.27,628.19437]
[1725776199874,1.3267,128.32,128.27,628.19437]
[1725776199875,8.4,128.28,128.27,628.19437]
[1725776200371,11.1287,128.29,128.27,628.19437]
[1725776202370,11.1288,128.28,128.27,628.19437]
[1725776205779,11.1288,128.28,128.27,552.97437]
[1725776206275,11.1288,128.28,128.27,550.85527]
[1725776215571,11.1288,128.28,128.27,475.63527]
[1725776218587,11.1288,128.28,128.27,400.41527]
[1725776220688,34.5288,128.28,128.27,376.38887]
[1725776221479,34.5288,128.28,128.27,301.16887]
[1725776221985,11.1288,128.28,128.27,301.16887]
[1725776222391,2.7288,128.28,128.27,301.16887]
[1725776222587,11.1288,128.28,128.27,301.16887]
[1725776222995,622.47882035,128.42,128.27,301.16887]
[1725776223289,8.4,128.32,128.27,301.16887]
[1725776223481,8.4,128.32,128.28,2.6695]
[1725776224388,8.4,128.34,128.29,8.4]
[1725776224696,8.4,128.33,128.28,6.65500713]
[1725776225295,11.1277,128.33,128.28,9.38360713]
[1725776227187,11.1277,128.33,128.29,2.7285]
[1725776228196,8.4,128.32,128.28,2.6695]
[1725776228386,8.4,128.3,128.28,2.6695]
[1725776229699,2.7283,128.31,128.28,2.6695]
[1725776232894,8.4,128.3,128.27,301.16887]
[1725776233387,8.4,128.3,128.27,303.84227]
[1725776233587,2.728,128.32,128.27,312.24227]
[1725776233787,8.4,128.33,128.27,312.24227]
[1725776233992,8.4,128.33,128.28,1.341]
[1725776235391,2.7279,128.32,128.28,4.0696]
[1725776238293,2.7279,128.32,128.28,7.96043649]
[1725776238499,2.7279,128.32,128.28,16.36043649]
[1725776245495,2.7281,128.31,128.28,5.23183649]
[1725776249505,2.7281,128.31,128.28,1.341]
[1725776255710,8.4,128.32,128.28,1.341]
[1725776256615,2.7283,128.31,128.28,1.341]
[1725776259602,2.7284,128.3,128.28,1.341]
[1725776261313,2.7284,128.3,128.27,303.84227]
[1725776261314,2.7286,128.29,128.27,303.84227]
[1725776262006,2.7283,128.31,128.27,303.84227]
[1725776262206,8.4,128.31,128.27,303.84227]
[1725776262407,3.96735866,128.37,128.28,12.28498884]
[1725776262606,2.728,128.32,128.28,16.32858884]
[1725776267717,2.728,128.32,128.28,13.59988884]
[1725776267918,2.728,128.32,128.28,5.19988884]
[1725776269918,2.7282,128.31,128.28,5.19988884]
[1725776273321,2.7282,128.31,128.28,13.59988884]
[1725776282915,2.728,128.32,128.28,16.32848884]
[1725776283125,2.728,128.32,128.29,8.4]
[1725776284230,8.4,128.34,128.28,7.92848884]
[1725776284528,8.4,128.34,128.28,16.32848884]
[1725776286426,2.7281,128.32,128.28,16.32848884]
[1725776287732,2.7281,128.32,128.28,7.92848884]
[1725776288028,2.7281,128.32,128.28,16.32848884]
[1725776288224,8.4,128.34,128.28,16.32848884]
[1725776288225,2.7282,128.31,128.28,1.3149]
[1725776288830,2.7282,128.31,128.28,5.30173244]
[1725776292623,2.7282,128.31,128.28,13.70173244]
[1725776293832,2.7282,128.31,128.28,5.30173244]
[1725776300340,2.728,128.32,128.28,5.30173244]
[1725776301439,2.7281,128.31,128.28,5.30173244]
[1725776303344,2.7284,128.3,128.27,303.84227]
[1725776303842,2.7286,128.29,128.27,301.16887]
[1725776304031,12.36655909,128.3,128.27,301.16887]
[1725776304439,2.7287,128.29,128.27,301.16887]
[1725776305141,2.7288,128.28,128.27,301.16887]
[1725776326357,2.7288,128.28,128.27,225.94887]
[1725776327556,2.7288,128.28,128.27,224.94887001]
[1725776327756,6.61677749,128.28,128.27,224.94887001]
[1725776329354,6.61677749,128.28,128.27,149.72887001]
[1725776332659,6.61677749,128.28,128.27,74.50887001]
[1725776334863,2.7297,128.24,128.2,6.72692113]
[1725776335365,2.7297,128.24,128.2,15.12692113]
[1725776335753,110.91482269,128.28,128.21,8.4]
[1725776335952,119.31482269,128.28,128.23,8.4]
[1725776336460,2.7293,128.26,128.23,8.4]
[1725776336655,2.7293,128.26,128.23,9.7613]
[1725776336964,2.7293,128.26,128.23,11.0455]
[1725776339861,2.7293,128.26,128.23,12.3969]
[1725776342760,2.7293,128.26,128.23,3.9969]
[1725776343066,8.4,128.26,128.2,3.99642113]
[1725776343267,8.4,128.26,128.21,1.382]
[1725776343469,8.4,128.26,128.21,2.734]
[1725776343767,8.4,128.27,128.21,11.134]
[1725776343967,8.4,128.27,128.21,12.4384]
[1725776344561,8.4,128.27,128.21,4.0384]
[1725776345367,2.7296,128.25,128.21,6.7686]
[1725776345558,8.4,128.25,128.21,4.0384]
[1725776346467,2.7298,128.24,128.21,4.0384]
[1725776348272,8.4,128.27,128.21,12.4384]
[1725776348863,2.7295,128.25,128.21,15.1685]
[1725776361171,2.7296,128.24,128.21,4.0384]
[1725776361372,8.4,128.25,128.21,4.0384]
[1725776361780,2.7299,128.23,128.21,4.0384]
[1725776362575,2.73,128.22,128.21,4.0384]
[1725776362789,11.13,128.22,128.21,2.734]
[1725776364578,2.7303,128.21,128.19,3.93431444]
[1725776364783,8.4,128.22,128.18,2.7618]
[1725776364987,8.4,128.22,128.19,3.81571933]
[1725776365380,2.7304,128.21,128.18,2.7618]
[1725776366185,2.7305,128.2,128.18,2.7618]
[1725776367980,2.7307,128.19,128.18,2.7618]
[1725776371893,2.7306,128.2,128.18,2.7618]
[1725776374787,2.7307,128.19,128.18,2.7618]
[1725776376186,2.7307,128.19,127.98,64.2295762]
[1725776376187,8.4,128.19,128.03,5.4681]
[1725776376399,8.4,128.19,128.12,8.4]
[1725776376590,2.7313,128.16,128.12,14.94812997]
[1725776377191,2.7313,128.16,128.12,6.54812997]
[1725776377385,2.7313,128.16,128.12,14.94812997]
[1725776378291,2.7317,128.15,128.11,5.438]
[1725776378491,2.7317,128.15,128.11,13.838]
[1725776378689,2.7317,128.15,128.11,17.77828469]
[1725776379193,2.7314,128.16,128.11,17.77828469]